[Event "Late-Titled-Tuesday-Blitz-June-18-2024"]
[Site "Chess.com"]
[Date "2024.06.18"]
[Round "10"]
[White "xakevicius91"]
[Black "NailBashirli"]
[Result "1-0"]
[WhiteElo "2662"]
[BlackElo "2745"]
[TimeControl "180+1"]
[EndTime "15:55:25 PDT"]
[Termination "xakevicius91 won by resignation"]

1. e4 {[%clk 0:03:00.9]} 1... e5 {[%clk 0:02:49.6]} 2. Nf3 {[%clk 0:03:00.8]}
2... Nc6 {[%clk 0:02:47.6]} 3. d4 {[%clk 0:03:00.7]} 3... exd4 {[%clk
0:02:47.1]} 4. Nxd4 {[%clk 0:03:01.6]} 4... Bc5 {[%clk 0:02:46]} 5. Nb3 {[%clk
0:03:01.5]} 5... Bb6 {[%clk 0:02:44.9]} 6. Nc3 {[%clk 0:03:01.4]} 6... Nf6
{[%clk 0:02:43.4]} 7. Bg5 {[%clk 0:02:58.6]} 7... h6 {[%clk 0:02:43.1]} 8. Bh4
{[%clk 0:02:57.2]} 8... g5 {[%clk 0:02:42.3]} 9. Bg3 {[%clk 0:02:57.4]} 9... d6
{[%clk 0:02:42.9]} 10. h4 {[%clk 0:02:55]} 10... Rg8 {[%clk 0:02:41.8]} 11. hxg5
{[%clk 0:02:55.3]} 11... hxg5 {[%clk 0:02:42.7]} 12. Bb5 {[%clk 0:02:41.7]}
12... Bg4 {[%clk 0:02:39.1]} 13. Qd2 {[%clk 0:02:38.4]} 13... a6 {[%clk
0:02:35.4]} 14. Ba4 {[%clk 0:02:37.2]} 14... Qe7 {[%clk 0:02:29.1]} 15. Bxc6+
{[%clk 0:02:30.8]} 15... bxc6 {[%clk 0:02:28.7]} 16. f3 {[%clk 0:02:31.4]} 16...
Bd7 {[%clk 0:02:27.1]} 17. O-O-O {[%clk 0:02:31.9]} 17... O-O-O {[%clk
0:02:26.5]} 18. Nd4 {[%clk 0:02:30.1]} 18... c5 {[%clk 0:02:24.1]} 19. Nb3
{[%clk 0:02:15.3]} 19... g4 {[%clk 0:02:13.1]} 20. Bh4 {[%clk 0:01:58.9]} 20...
c4 {[%clk 0:02:06.7]} 21. Nd5 {[%clk 0:01:45.1]} 21... Qe6 {[%clk 0:00:50.3]}
22. Bxf6 {[%clk 0:01:39.8]} 22... cxb3 {[%clk 0:00:47.7]} 23. axb3 {[%clk
0:01:39.3]} 23... Rde8 {[%clk 0:00:38.8]} 24. Bd4 {[%clk 0:01:35.3]} 24... Bxd4
{[%clk 0:00:34.1]} 25. Qxd4 {[%clk 0:01:34.2]} 25... Bc6 {[%clk 0:00:18.8]} 26.
Nf6 {[%clk 0:01:26]} 26... gxf3 {[%clk 0:00:18.1]} 27. gxf3 {[%clk 0:01:24.4]}
27... Rg2 {[%clk 0:00:13.8]} 28. Nxe8 {[%clk 0:01:20.7]} 28... Qxe8 {[%clk
0:00:14.7]} 29. Rh8 {[%clk 0:01:19.5]} 29... Rg8 {[%clk 0:00:13.2]} 30. Rdh1
{[%clk 0:01:18.9]} 30... Kb7 {[%clk 0:00:11.4]} 31. Rxg8 {[%clk 0:01:16.9]}
31... Qxg8 {[%clk 0:00:12.3]} 32. Qb4+ {[%clk 0:01:13.7]} 32... Ka7 {[%clk
0:00:12.1]} 33. Qc3 {[%clk 0:01:12]} 33... Kb7 {[%clk 0:00:11.7]} 34. Kb1 {[%clk
0:01:10.8]} 34... Qg2 {[%clk 0:00:11.7]} 35. Rh7 {[%clk 0:01:05.7]} 35... Qg6
{[%clk 0:00:09.7]} 36. Rg7 {[%clk 0:01:04.1]} 36... Qh5 {[%clk 0:00:10.3]} 37.
Qf6 {[%clk 0:00:55.6]} 37... Qh1+ {[%clk 0:00:07.2]} 38. Ka2 {[%clk 0:00:55.5]}
38... Qh5 {[%clk 0:00:04.2]} 39. Rg5 {[%clk 0:00:51.7]} 39... Qh4 {[%clk
0:00:02.5]} 40. Rb5+ {[%clk 0:00:49.2]} 1-0

[Event "Late-Titled-Tuesday-Blitz-June-18-2024"]
[Site "Chess.com"]
[Date "2024.06.18"]
[Round "10"]
[White "GMG"]
[Black "temus_galaktionov"]
[Result "0-1"]
[WhiteElo "2710"]
[BlackElo "2876"]
[TimeControl "180+1"]
[EndTime "15:55:26 PDT"]
[Termination "temus_galaktionov won on time"]

1. d4 {[%clk 0:02:57.2]} 1... c6 {[%clk 0:03:00.9]} 2. Bf4 {[%clk 0:02:50.2]}
2... g6 {[%clk 0:03:01.8]} 3. e4 {[%clk 0:02:46.8]} 3... d6 {[%clk 0:03:01.7]}
4. Nc3 {[%clk 0:02:34.4]} 4... Bg7 {[%clk 0:03:01.1]} 5. Nf3 {[%clk 0:02:34.9]}
5... Nd7 {[%clk 0:02:52.7]} 6. e5 {[%clk 0:02:31.3]} 6... dxe5 {[%clk
0:02:45.7]} 7. dxe5 {[%clk 0:02:32.2]} 7... Nc5 {[%clk 0:02:46.1]} 8. Qxd8+
{[%clk 0:02:25.4]} 8... Kxd8 {[%clk 0:02:47]} 9. O-O-O+ {[%clk 0:02:24.9]} 9...
Ke8 {[%clk 0:02:47.5]} 10. h3 {[%clk 0:02:16.1]} 10... h5 {[%clk 0:02:41.5]} 11.
Rd2 {[%clk 0:01:32]} 11... Nh6 {[%clk 0:02:39.5]} 12. Bc4 {[%clk 0:01:31.3]}
12... Be6 {[%clk 0:02:39]} 13. Be2 {[%clk 0:01:23.8]} 13... Rd8 {[%clk
0:02:16.7]} 14. Rhd1 {[%clk 0:01:21.6]} 14... Rxd2 {[%clk 0:02:16.2]} 15. Rxd2
{[%clk 0:01:22.5]} 15... Nf5 {[%clk 0:02:12.7]} 16. h4 {[%clk 0:01:06.2]} 16...
f6 {[%clk 0:02:00.6]} 17. b4 {[%clk 0:00:53]} 17... Nd7 {[%clk 0:01:58.8]} 18.
exf6 {[%clk 0:00:50.8]} 18... exf6 {[%clk 0:01:59.7]} 19. Ne4 {[%clk 0:00:35]}
19... Bh6 {[%clk 0:01:58.1]} 20. Bxh6 {[%clk 0:00:33.7]} 20... Rxh6 {[%clk
0:01:59]} 21. c4 {[%clk 0:00:31.2]} 21... Ke7 {[%clk 0:01:54.7]} 22. Kb2 {[%clk
0:00:31]} 22... Rh8 {[%clk 0:01:49.6]} 23. Kc3 {[%clk 0:00:31.1]} 23... Ra8
{[%clk 0:01:43.7]} 24. a4 {[%clk 0:00:29.5]} 24... a5 {[%clk 0:01:43.4]} 25. b5
{[%clk 0:00:29.9]} 25... Nb6 {[%clk 0:01:34.2]} 26. Nc5 {[%clk 0:00:29.6]} 26...
cxb5 {[%clk 0:01:22.8]} 27. axb5 {[%clk 0:00:29.2]} 27... Rc8 {[%clk 0:01:19.7]}
28. Nxe6 {[%clk 0:00:26.4]} 28... Kxe6 {[%clk 0:01:20.6]} 29. Ra2 {[%clk
0:00:23.2]} 29... Nd6 {[%clk 0:01:09.8]} 30. Nd2 {[%clk 0:00:06.8]} 30... Nd5+
{[%clk 0:01:09.7]} 31. Kb3 {[%clk 0:00:04.3]} 31... Nf4 {[%clk 0:01:09.6]} 32.
Bf3 {[%clk 0:00:04.2]} 32... b6 {[%clk 0:01:09.9]} 33. g3 {[%clk 0:00:04.2]}
33... Nd3 {[%clk 0:01:07.4]} 34. Bd5+ {[%clk 0:00:04]} 34... Kf5 {[%clk
0:00:57.5]} 35. Nf3 {[%clk 0:00:04.9]} 35... Nc5+ {[%clk 0:00:54.8]} 36. Kc3
{[%clk 0:00:05]} 36... Re8 {[%clk 0:00:53.2]} 37. Nd4+ {[%clk 0:00:04.5]} 37...
Kg4 {[%clk 0:00:53.2]} 38. Bc6 {[%clk 0:00:02.4]} 38... Re1 {[%clk 0:00:52.1]}
39. Bd5 {[%clk 0:00:01.8]} 39... Nde4+ {[%clk 0:00:48.2]} 40. Kc2 {[%clk
0:00:01.3]} 40... Nxf2 {[%clk 0:00:46.3]} 0-1

[Event "Late-Titled-Tuesday-Blitz-June-18-2024"]
[Site "Chess.com"]
[Date "2024.06.18"]
[Round "10"]
[White "CombativeWombat"]
[Black "Roedor"]
[Result "1-0"]
[WhiteElo "2302"]
[BlackElo "2432"]
[TimeControl "180+1"]
[EndTime "15:55:30 PDT"]
[Termination "CombativeWombat won on time"]

1. e4 {[%clk 0:03:00.9]} 1... e5 {[%clk 0:02:56.6]} 2. Bc4 {[%clk 0:03:00.1]}
2... Nc6 {[%clk 0:02:54.4]} 3. Nc3 {[%clk 0:02:59.8]} 3... Nf6 {[%clk
0:02:54.1]} 4. d3 {[%clk 0:02:59.7]} 4... Na5 {[%clk 0:02:54.3]} 5. Bb3 {[%clk
0:02:59.5]} 5... Nxb3 {[%clk 0:02:53.2]} 6. axb3 {[%clk 0:03:00.4]} 6... d5
{[%clk 0:02:49.6]} 7. exd5 {[%clk 0:03:00.3]} 7... Nxd5 {[%clk 0:02:49.3]} 8.
Qh5 {[%clk 0:03:00.3]} 8... Qd6 {[%clk 0:02:12.9]} 9. Nf3 {[%clk 0:02:55.7]}
9... Nxc3 {[%clk 0:02:09.6]} 10. bxc3 {[%clk 0:02:54.4]} 10... Be7 {[%clk
0:01:54.5]} 11. Ba3 {[%clk 0:02:47.1]} 11... Qe6 {[%clk 0:01:19.1]} 12. Qxe5
{[%clk 0:02:37.7]} 12... Bxa3 {[%clk 0:01:09.8]} 13. Rxa3 {[%clk 0:02:36.5]}
13... O-O {[%clk 0:01:09.3]} 14. Qxe6 {[%clk 0:02:35.8]} 14... Bxe6 {[%clk
0:01:10.2]} 15. Kd2 {[%clk 0:02:35.6]} 15... a5 {[%clk 0:01:10.3]} 16. Rha1
{[%clk 0:02:30.5]} 16... b6 {[%clk 0:01:10.5]} 17. b4 {[%clk 0:02:30.8]} 17...
Bd5 {[%clk 0:01:05.4]} 18. bxa5 {[%clk 0:02:29.8]} 18... Rxa5 {[%clk 0:01:03]}
19. Rxa5 {[%clk 0:02:28.9]} 19... bxa5 {[%clk 0:01:03.7]} 20. Rxa5 {[%clk
0:02:29.1]} 20... Bxf3 {[%clk 0:01:04.3]} 21. gxf3 {[%clk 0:02:29]} 21... g6
{[%clk 0:01:03.9]} 22. Rc5 {[%clk 0:02:11.3]} 22... Rc8 {[%clk 0:01:02.6]} 23.
d4 {[%clk 0:02:08.9]} 23... Kf8 {[%clk 0:01:02.7]} 24. d5 {[%clk 0:02:07.8]}
24... Ke7 {[%clk 0:01:02.8]} 25. c4 {[%clk 0:02:05.2]} 25... Kd7 {[%clk
0:01:02]} 26. Ra5 {[%clk 0:01:55.6]} 26... Re8 {[%clk 0:01:01.8]} 27. c5 {[%clk
0:01:50.9]} 27... Re5 {[%clk 0:01:01.2]} 28. c4 {[%clk 0:01:45.6]} 28... Rf5
{[%clk 0:01:00.3]} 29. Ke3 {[%clk 0:01:40.7]} 29... h5 {[%clk 0:00:58.8]} 30.
Ra8 {[%clk 0:01:30.9]} 30... g5 {[%clk 0:00:56.4]} 31. Rh8 {[%clk 0:01:24]}
31... h4 {[%clk 0:00:56.2]} 32. Rh6 {[%clk 0:01:20.5]} 32... Re5+ {[%clk
0:00:50.1]} 33. Kd3 {[%clk 0:01:18.6]} 33... Rf5 {[%clk 0:00:49.8]} 34. c6+
{[%clk 0:01:16.2]} 34... Ke7 {[%clk 0:00:48.8]} 35. Ke3 {[%clk 0:01:12.4]} 35...
Re5+ {[%clk 0:00:23.9]} 36. Kd4 {[%clk 0:01:12.5]} 36... Rf5 {[%clk 0:00:24.4]}
37. Kc5 {[%clk 0:00:39]} 37... Rxf3 {[%clk 0:00:22.9]} 38. d6+ {[%clk
0:00:39.5]} 38... cxd6+ {[%clk 0:00:23]} 39. Rxd6 {[%clk 0:00:40.1]} 39... Ra3
{[%clk 0:00:02]} 40. Rd5 {[%clk 0:00:38.5]} 1-0

[Event "Late-Titled-Tuesday-Blitz-June-18-2024"]
[Site "Chess.com"]
[Date "2024.06.18"]
[Round "10"]
[White "olakenn"]
[Black "crazycheesecake"]
[Result "0-1"]
[WhiteElo "1863"]
[BlackElo "2076"]
[TimeControl "180+1"]
[EndTime "15:55:30 PDT"]
[Termination "crazycheesecake won on time"]

1. e4 {[%clk 0:03:00.9]} 1... e5 {[%clk 0:02:15.1]} 2. Nf3 {[%clk 0:03:00.2]}
2... Nc6 {[%clk 0:02:15.3]} 3. Bb5 {[%clk 0:02:59.9]} 3... Nf6 {[%clk
0:02:15.5]} 4. O-O {[%clk 0:02:59.7]} 4... Nxe4 {[%clk 0:02:14.4]} 5. d4 {[%clk
0:02:57.8]} 5... Nd6 {[%clk 0:02:13.4]} 6. Bxc6 {[%clk 0:02:57.4]} 6... dxc6
{[%clk 0:02:14.1]} 7. dxe5 {[%clk 0:02:57.6]} 7... Nf5 {[%clk 0:02:14.8]} 8.
Qxd8+ {[%clk 0:02:57.1]} 8... Kxd8 {[%clk 0:02:15.7]} 9. Bg5+ {[%clk 0:02:56.8]}
9... Be7 {[%clk 0:02:15]} 10. Bxe7+ {[%clk 0:02:56.7]} 10... Nxe7 {[%clk
0:02:11.1]} 11. Nc3 {[%clk 0:02:55.8]} 11... Bf5 {[%clk 0:02:06.3]} 12. Rad1+
{[%clk 0:02:52.6]} 12... Ke8 {[%clk 0:01:53.5]} 13. Rd2 {[%clk 0:02:52.4]} 13...
Rd8 {[%clk 0:01:48]} 14. Rfd1 {[%clk 0:02:51.9]} 14... Rxd2 {[%clk 0:01:46.7]}
15. Rxd2 {[%clk 0:02:51.9]} 15... h5 {[%clk 0:01:45.4]} 16. Nd4 {[%clk
0:02:49.7]} 16... Bd7 {[%clk 0:01:43.3]} 17. Na4 {[%clk 0:02:37.6]} 17... b6
{[%clk 0:01:38.1]} 18. Nc3 {[%clk 0:02:35.3]} 18... c5 {[%clk 0:01:37.3]} 19.
Ndb5 {[%clk 0:02:32.2]} 19... Kd8 {[%clk 0:01:32.2]} 20. Nxa7 {[%clk 0:02:01.7]}
20... c6 {[%clk 0:01:31]} 21. a4 {[%clk 0:01:44.1]} 21... Kc7 {[%clk 0:01:27.7]}
22. a5 {[%clk 0:01:42.1]} 22... b5 {[%clk 0:01:22.3]} 23. Ne4 {[%clk 0:01:32.4]}
23... Ra8 {[%clk 0:01:16.7]} 24. Nxc5 {[%clk 0:01:28.1]} 24... Bf5 {[%clk
0:01:16.2]} 25. Nxb5+ {[%clk 0:01:16.2]} 25... cxb5 {[%clk 0:01:14.4]} 26. b4
{[%clk 0:01:16.2]} 26... Nc6 {[%clk 0:01:13.7]} 27. c3 {[%clk 0:01:14.3]} 27...
Nxe5 {[%clk 0:01:13.4]} 28. Re2 {[%clk 0:01:05]} 28... Rd8 {[%clk 0:01:06.9]}
29. h3 {[%clk 0:00:55.9]} 29... Nc6 {[%clk 0:00:59.6]} 30. Na6+ {[%clk
0:00:37.4]} 30... Kb7 {[%clk 0:00:54.4]} 31. Nc5+ {[%clk 0:00:36.8]} 31... Kc8
{[%clk 0:00:53.4]} 32. f3 {[%clk 0:00:31.4]} 32... Rd1+ {[%clk 0:00:48.3]} 33.
Kh2 {[%clk 0:00:31.2]} 33... Rc1 {[%clk 0:00:37.4]} 34. Re8+ {[%clk 0:00:27.3]}
34... Kc7 {[%clk 0:00:36.1]} 35. Rf8 {[%clk 0:00:18.7]} 35... Bg6 {[%clk
0:00:34.6]} 36. Na6+ {[%clk 0:00:02.1]} 36... Kd6 {[%clk 0:00:30.7]} 0-1

[Event "Late-Titled-Tuesday-Blitz-June-18-2024"]
[Site "Chess.com"]
[Date "2024.06.18"]
[Round "10"]
[White "Sanyura"]
[Black "Chempiblinka"]
[Result "0-1"]
[WhiteElo "2526"]
[BlackElo "2407"]
[TimeControl "180+1"]
[EndTime "15:55:38 PDT"]
[Termination "Chempiblinka won on time"]

1. e4 {[%clk 0:02:26.2]} 1... c5 {[%clk 0:02:58.9]} 2. Nf3 {[%clk 0:02:25.4]}
2... Nc6 {[%clk 0:02:59.4]} 3. d4 {[%clk 0:02:25.2]} 3... cxd4 {[%clk
0:03:00.3]} 4. Nxd4 {[%clk 0:02:26]} 4... g6 {[%clk 0:02:59.1]} 5. c4 {[%clk
0:02:25]} 5... Nf6 {[%clk 0:02:55.7]} 6. Nc3 {[%clk 0:02:25]} 6... Nxd4 {[%clk
0:02:55.6]} 7. Qxd4 {[%clk 0:02:25.9]} 7... d6 {[%clk 0:02:55.4]} 8. Be3 {[%clk
0:02:26.4]} 8... Bg7 {[%clk 0:02:55]} 9. f3 {[%clk 0:02:26.9]} 9... O-O {[%clk
0:02:54.5]} 10. Qd2 {[%clk 0:02:27.2]} 10... a5 {[%clk 0:02:54.5]} 11. Be2
{[%clk 0:02:27.7]} 11... a4 {[%clk 0:02:54.7]} 12. O-O {[%clk 0:02:28.1]} 12...
Qa5 {[%clk 0:02:55.1]} 13. Rfd1 {[%clk 0:02:28.1]} 13... Be6 {[%clk 0:02:42.2]}
14. Rac1 {[%clk 0:00:21.7]} 14... Rfc8 {[%clk 0:02:37.1]} 15. b3 {[%clk
0:00:17.1]} 15... axb3 {[%clk 0:02:36.1]} 16. axb3 {[%clk 0:00:18]} 16... Qb4
{[%clk 0:02:36.3]} 17. Na4 {[%clk 0:00:18.2]} 17... Qxd2 {[%clk 0:02:23.4]} 18.
Rxd2 {[%clk 0:00:17.5]} 18... Nd7 {[%clk 0:02:22.7]} 19. Rdc2 {[%clk 0:00:16.6]}
19... f5 {[%clk 0:01:54.6]} 20. Bd3 {[%clk 0:00:15]} 20... Rc6 {[%clk
0:01:41.1]} 21. exf5 {[%clk 0:00:12.9]} 21... gxf5 {[%clk 0:01:38.7]} 22. Nc3
{[%clk 0:00:12.6]} 22... Ne5 {[%clk 0:01:37.7]} 23. Be2 {[%clk 0:00:12]} 23...
Kf7 {[%clk 0:01:37.7]} 24. Nb5 {[%clk 0:00:10.8]} 24... Rcc8 {[%clk 0:01:32.6]}
25. Nd4 {[%clk 0:00:10.6]} 25... Bd7 {[%clk 0:01:32.8]} 26. h3 {[%clk
0:00:10.6]} 26... Nc6 {[%clk 0:01:32.8]} 27. Nb5 {[%clk 0:00:10.2]} 27... Nb4
{[%clk 0:01:32.4]} 28. Rd2 {[%clk 0:00:10.5]} 28... Bxb5 {[%clk 0:01:29.7]} 29.
f4 {[%clk 0:00:07.7]} 29... Bc6 {[%clk 0:01:25.4]} 30. Bh5+ {[%clk 0:00:08.2]}
30... Kf8 {[%clk 0:01:24.5]} 31. Re2 {[%clk 0:00:08.1]} 31... Be4 {[%clk
0:01:24.6]} 32. g4 {[%clk 0:00:06.7]} 32... Ra2 {[%clk 0:01:24.5]} 33. Rxa2
{[%clk 0:00:06.2]} 33... Nxa2 {[%clk 0:01:24.2]} 34. Re1 {[%clk 0:00:06.8]}
34... Nc3 {[%clk 0:01:23.7]} 35. Kf2 {[%clk 0:00:05.1]} 35... d5 {[%clk
0:01:21.9]} 36. Ra1 {[%clk 0:00:04]} 36... d4 {[%clk 0:01:21.7]} 37. Bd2 {[%clk
0:00:03.5]} 37... d3 {[%clk 0:01:21.3]} 38. Ra5 {[%clk 0:00:03.2]} 38... Bd4+
{[%clk 0:01:20.1]} 39. Ke1 {[%clk 0:00:02.8]} 39... Nb1 {[%clk 0:01:17.4]} 40.
gxf5 {[%clk 0:00:02.5]} 40... Nxd2 {[%clk 0:01:16.5]} 41. Kxd2 {[%clk
0:00:03.4]} 41... Bc5 {[%clk 0:01:14.8]} 42. Rb5 {[%clk 0:00:02.2]} 42... b6
{[%clk 0:01:14.5]} 43. b4 {[%clk 0:00:02.3]} 43... Bd4 {[%clk 0:01:10.2]} 44. c5
{[%clk 0:00:01.6]} 44... bxc5 {[%clk 0:01:10.5]} 45. bxc5 {[%clk 0:00:02.1]}
45... Bxc5 {[%clk 0:01:06.6]} 46. f6 {[%clk 0:00:02.6]} 46... exf6 {[%clk
0:01:05.7]} 47. Bg4 {[%clk 0:00:03.1]} 47... Rc7 {[%clk 0:01:04.9]} 48. Be6
{[%clk 0:00:03.3]} 48... Ke7 {[%clk 0:01:05.2]} 49. f5 {[%clk 0:00:03.6]} 49...
Bd6 {[%clk 0:01:02.3]} 50. Ke3 {[%clk 0:00:03.9]} 50... Bc6 {[%clk 0:01:00.8]}
51. Ra5 {[%clk 0:00:01.7]} 51... Bb4 {[%clk 0:01:00.5]} 0-1

[Event "Late-Titled-Tuesday-Blitz-June-18-2024"]
[Site "Chess.com"]
[Date "2024.06.18"]
[Round "10"]
[White "NigelDwarf"]
[Black "Hirna2005"]
[Result "1-0"]
[WhiteElo "2441"]
[BlackElo "2290"]
[TimeControl "180+1"]
[EndTime "15:55:39 PDT"]
[Termination "NigelDwarf won by checkmate"]

1. e4 {[%clk 0:02:54.4]} 1... g6 {[%clk 0:03:00.1]} 2. d4 {[%clk 0:02:52.5]}
2... Bg7 {[%clk 0:03:00.6]} 3. Nc3 {[%clk 0:02:53]} 3... d6 {[%clk 0:03:01.1]}
4. Be3 {[%clk 0:02:52.2]} 4... a6 {[%clk 0:03:01.1]} 5. Qd2 {[%clk 0:02:50.8]}
5... b5 {[%clk 0:03:00.9]} 6. h4 {[%clk 0:02:46.3]} 6... Nf6 {[%clk 0:02:57.5]}
7. f3 {[%clk 0:02:36.4]} 7... Bb7 {[%clk 0:02:46.2]} 8. Bh6 {[%clk 0:02:06.2]}
8... Bxh6 {[%clk 0:02:42]} 9. Qxh6 {[%clk 0:02:01.5]} 9... b4 {[%clk 0:02:39.4]}
10. Nce2 {[%clk 0:01:59]} 10... Nbd7 {[%clk 0:02:35.9]} 11. O-O-O {[%clk
0:01:37.1]} 11... c5 {[%clk 0:02:23.4]} 12. dxc5 {[%clk 0:01:26.6]} 12... Nxc5
{[%clk 0:02:23.2]} 13. e5 {[%clk 0:01:24.8]} 13... Nd5 {[%clk 0:02:21]} 14. Qg7
{[%clk 0:01:24.3]} 14... Rf8 {[%clk 0:02:19.8]} 15. Nh3 {[%clk 0:01:00.9]} 15...
Ne3 {[%clk 0:02:12]} 16. Re1 {[%clk 0:01:00.5]} 16... Qa5 {[%clk 0:02:08]} 17.
Nd4 {[%clk 0:00:16.1]} 17... b3 {[%clk 0:01:48.4]} 18. Bc4 {[%clk 0:00:12.6]}
18... bxa2 {[%clk 0:01:35.2]} 19. Bxa2 {[%clk 0:00:11]} 19... Nxg2 {[%clk
0:01:31.3]} 20. exd6 {[%clk 0:00:09.2]} 20... Nxe1 {[%clk 0:01:27.2]} 21. dxe7
{[%clk 0:00:09.4]} 21... Ne6 {[%clk 0:01:16]} 22. Nxe6 {[%clk 0:00:06.6]} 22...
Kxe7 {[%clk 0:01:09.7]} 23. Nxf8 {[%clk 0:00:06.6]} 23... Rxf8 {[%clk
0:01:09.3]} 24. Ng5 {[%clk 0:00:06.8]} 24... Nxf3 {[%clk 0:00:39.3]} 25. Nxf3
{[%clk 0:00:06.3]} 25... Bxf3 {[%clk 0:00:39.1]} 26. Rf1 {[%clk 0:00:06.6]}
26... Qxa2 {[%clk 0:00:36]} 27. Re1+ {[%clk 0:00:05.4]} 27... Kd7 {[%clk
0:00:34]} 28. Qxf8 {[%clk 0:00:06]} 28... Qa1+ {[%clk 0:00:33.2]} 29. Kd2 {[%clk
0:00:06.7]} 29... Qa5+ {[%clk 0:00:33.2]} 30. c3 {[%clk 0:00:06.4]} 30... Qd5+
{[%clk 0:00:32]} 31. Kc1 {[%clk 0:00:06.3]} 31... Be4 {[%clk 0:00:29.8]} 32. Rd1
{[%clk 0:00:05.9]} 32... Bd3 {[%clk 0:00:29.8]} 33. Qg7 {[%clk 0:00:04.3]} 33...
Qf5 {[%clk 0:00:23.4]} 34. Qd4+ {[%clk 0:00:04.2]} 34... Ke8 {[%clk 0:00:23.3]}
35. Rxd3 {[%clk 0:00:03.5]} 35... Kf8 {[%clk 0:00:23.8]} 36. Qh8+ {[%clk
0:00:03.5]} 36... Ke7 {[%clk 0:00:23.8]} 37. Qd8+ {[%clk 0:00:04.4]} 37... Ke6
{[%clk 0:00:23.1]} 38. Qd6# {[%clk 0:00:05.3]} 1-0

[Event "Late-Titled-Tuesday-Blitz-June-18-2024"]
[Site "Chess.com"]
[Date "2024.06.18"]
[Round "10"]
[White "dianamirza"]
[Black "SocoLoco"]
[Result "0-1"]
[WhiteElo "1803"]
[BlackElo "2168"]
[TimeControl "180+1"]
[EndTime "15:55:41 PDT"]
[Termination "SocoLoco won by resignation"]

1. e4 {[%clk 0:02:45]} 1... c5 {[%clk 0:02:58.9]} 2. Nf3 {[%clk 0:02:44.7]} 2...
e6 {[%clk 0:02:59.2]} 3. d4 {[%clk 0:02:45.4]} 3... cxd4 {[%clk 0:03:00.1]} 4.
Nxd4 {[%clk 0:02:46.3]} 4... Nf6 {[%clk 0:03:00.4]} 5. Nc3 {[%clk 0:02:46.8]}
5... Nc6 {[%clk 0:03:01]} 6. Be3 {[%clk 0:02:47.2]} 6... d5 {[%clk 0:03:00.6]}
7. f3 {[%clk 0:02:45.9]} 7... Bb4 {[%clk 0:02:58.9]} 8. Nxc6 {[%clk 0:02:46.2]}
8... bxc6 {[%clk 0:02:58.7]} 9. e5 {[%clk 0:02:46.2]} 9... Nd7 {[%clk
0:02:56.5]} 10. f4 {[%clk 0:02:43]} 10... O-O {[%clk 0:02:44.6]} 11. Bd3 {[%clk
0:02:40]} 11... f6 {[%clk 0:02:40.7]} 12. O-O {[%clk 0:02:39.5]} 12... fxe5
{[%clk 0:02:39.3]} 13. fxe5 {[%clk 0:02:39.5]} 13... Nxe5 {[%clk 0:02:29.8]} 14.
Bxh7+ {[%clk 0:02:36.9]} 14... Kxh7 {[%clk 0:02:29.6]} 15. Qh5+ {[%clk
0:02:37.5]} 15... Kg8 {[%clk 0:02:28.9]} 16. Qxe5 {[%clk 0:02:38.1]} 16... Bd6
{[%clk 0:01:59.8]} 17. Rxf8+ {[%clk 0:02:26.1]} 17... Qxf8 {[%clk 0:02:00.7]}
18. Qh5 {[%clk 0:02:21]} 18... e5 {[%clk 0:01:37.9]} 19. Rf1 {[%clk 0:02:13.6]}
19... Qe7 {[%clk 0:01:37.2]} 20. Bg5 {[%clk 0:02:10.1]} 20... Qe6 {[%clk
0:01:32.4]} 21. Ne2 {[%clk 0:01:53.4]} 21... Bd7 {[%clk 0:01:30.5]} 22. Ng3
{[%clk 0:01:53.5]} 22... e4 {[%clk 0:01:09.4]} 23. Nf5 {[%clk 0:01:38.4]} 23...
Bc5+ {[%clk 0:00:59.3]} 24. Kh1 {[%clk 0:01:34.6]} 24... Rf8 {[%clk 0:00:58]}
25. g4 {[%clk 0:01:29.1]} 25... g6 {[%clk 0:00:45.8]} 26. Nh6+ {[%clk
0:01:20.3]} 26... Kg7 {[%clk 0:00:45.9]} 27. Qh3 {[%clk 0:01:14.4]} 27... e3
{[%clk 0:00:29.7]} 28. Rxf8 {[%clk 0:01:10.9]} 28... Kxf8 {[%clk 0:00:26.3]} 29.
Qf3+ {[%clk 0:01:04.8]} 29... Kg7 {[%clk 0:00:25.4]} 30. Qe2 {[%clk 0:00:47.5]}
30... d4 {[%clk 0:00:24.9]} 31. Bf4 {[%clk 0:00:42.7]} 31... Qd5+ {[%clk
0:00:24.2]} 32. Kg1 {[%clk 0:00:40.8]} 32... Qe4 {[%clk 0:00:24.4]} 33. Qf1
{[%clk 0:00:27.5]} 33... Be6 {[%clk 0:00:23.9]} 34. g5 {[%clk 0:00:18.3]} 34...
Bd5 {[%clk 0:00:23.8]} 35. Be5+ {[%clk 0:00:12.4]} 35... Qxe5 {[%clk 0:00:23.4]}
36. Qf6+ {[%clk 0:00:08.4]} 36... Qxf6 {[%clk 0:00:23.6]} 37. gxf6+ {[%clk
0:00:09.3]} 37... Kxh6 {[%clk 0:00:23.7]} 38. Kf1 {[%clk 0:00:08.4]} 38... Kg5
{[%clk 0:00:21.7]} 39. Ke2 {[%clk 0:00:08.7]} 39... Kxf6 {[%clk 0:00:21.6]} 0-1

[Event "Late-Titled-Tuesday-Blitz-June-18-2024"]
[Site "Chess.com"]
[Date "2024.06.18"]
[Round "10"]
[White "CoachVadim"]
[Black "Arteler"]
[Result "0-1"]
[WhiteElo "2366"]
[BlackElo "2234"]
[TimeControl "180+1"]
[EndTime "15:55:43 PDT"]
[Termination "Arteler won on time"]

1. Nf3 {[%clk 0:03:00.9]} 1... c5 {[%clk 0:02:54.2]} 2. g3 {[%clk 0:03:01]} 2...
Nf6 {[%clk 0:02:53.8]} 3. Bg2 {[%clk 0:03:01.4]} 3... d5 {[%clk 0:02:54.4]} 4.
O-O {[%clk 0:03:01.4]} 4... e6 {[%clk 0:02:52.1]} 5. c4 {[%clk 0:02:58.3]} 5...
Be7 {[%clk 0:02:49.6]} 6. cxd5 {[%clk 0:02:58.5]} 6... Nxd5 {[%clk 0:02:47.6]}
7. e4 {[%clk 0:02:46.7]} 7... Nf6 {[%clk 0:02:46.1]} 8. e5 {[%clk 0:02:41]} 8...
Nd5 {[%clk 0:02:45.1]} 9. d4 {[%clk 0:02:41.3]} 9... O-O {[%clk 0:02:41.2]} 10.
Nc3 {[%clk 0:02:37.1]} 10... cxd4 {[%clk 0:02:38.1]} 11. Ne4 {[%clk 0:02:22.6]}
11... Nc6 {[%clk 0:02:35.5]} 12. h4 {[%clk 0:02:20.5]} 12... Qc7 {[%clk
0:02:28]} 13. Re1 {[%clk 0:02:17.2]} 13... Nxe5 {[%clk 0:02:20.3]} 14. Nxe5
{[%clk 0:01:58.9]} 14... Qxe5 {[%clk 0:02:18.2]} 15. Ng5 {[%clk 0:01:57.1]}
15... Qd6 {[%clk 0:01:56.8]} 16. Qd3 {[%clk 0:01:41.6]} 16... Nf6 {[%clk
0:01:49]} 17. Bf4 {[%clk 0:01:39.9]} 17... Qd8 {[%clk 0:01:45.6]} 18. Be5 {[%clk
0:01:34.4]} 18... h6 {[%clk 0:01:45.3]} 19. Bxf6 {[%clk 0:01:23.8]} 19... hxg5
{[%clk 0:01:44.2]} 20. Bxg5 {[%clk 0:01:17.3]} 20... Bxg5 {[%clk 0:01:42.6]} 21.
hxg5 {[%clk 0:01:18.2]} 21... Qxg5 {[%clk 0:01:41.8]} 22. Qxd4 {[%clk
0:01:14.6]} 22... Rd8 {[%clk 0:01:39.1]} 23. Qc3 {[%clk 0:00:57.7]} 23... Rb8
{[%clk 0:01:23.5]} 24. Re5 {[%clk 0:00:45.4]} 24... Qf6 {[%clk 0:01:17.7]} 25.
Rae1 {[%clk 0:00:44.7]} 25... Bd7 {[%clk 0:01:16.3]} 26. Qa3 {[%clk 0:00:26.3]}
26... a6 {[%clk 0:01:10.3]} 27. Rh5 {[%clk 0:00:25.3]} 27... Bc6 {[%clk
0:01:04.9]} 28. Bxc6 {[%clk 0:00:24.8]} 28... bxc6 {[%clk 0:01:05.8]} 29. b3
{[%clk 0:00:19.8]} 29... Rd2 {[%clk 0:00:36.5]} 30. Rh2 {[%clk 0:00:18.4]} 30...
Qf3 {[%clk 0:00:17.3]} 31. Qxa6 {[%clk 0:00:14.1]} 31... Rbd8 {[%clk 0:00:15.5]}
32. Qa5 {[%clk 0:00:01.7]} 32... Rd1 {[%clk 0:00:14.4]} 0-1